Workbook

Sheet 44 h
A1: ANEXO I - PLANILHA DE CUSTOS E FORMAÇÃO DE PREÇOS
A3: Nº do Processo: 59540.000477/2018-68
A4: Licitação Nº:
A5: Dia ____/_____/_____ às ____:_____
A7: Discriminação dos Serviços
A8: A | B8: Data de apresentação da proposta
A9: B | B9: Município/UF | I9: Aracaju/SE
A10: C | B10: Ano do Acordo, Convenção ou Dissídio Coletivo | I10: 2018
A11: D | B11: Nº de meses de execução contratual | I11: 12
A13: Identificação do Serviço
A14: Tipo de Serviço | C14: Unidade de Medida | E14: Quantidade total a contratar (em função da unidade de medida)
A15: Vigilância Armada | C15: Posto 44 h semanais | E15: 1
A17: Dados para composição dos custos referentes à mão-de-obra
A18: 1 | B18: Tipo de serviço (mesmo serviço com características distintas) | I18: Vigilâcia
A19: 2 | B19: Classificação Brasileira de Ocupações (CBO) | I19: 5173
A20: 3 | B20: Salário Nominativo da Categoria Profissional | I20: 1086.53
A21: 4 | B21: Categoria profissional (vinculada à execução contratual) | I21: Vigilante
A22: 5 | B22: Data base da categoria (dia/mês/ano) | I22: 2018-01-01
A24: MÓDULO 1 - COMPOSIÇÃO DA REMUNERAÇÃO
A25: 1 | B25: COMPOSIÇÃO DA REMUNERAÇÃO | H25: % | I25: VALOR (R$)
A26: A | B26: Salário Base | I26: =I20 -> 1086.53
A27: B | B27: Adicional Periculosidade | I27: =I26*0.3 -> 325.959
A28: C | B28: Adicional Noturno | I28: 0
A29: D | B29: Adicional de Hora Noturna Reduzida | I29: 0
A30: TOTAL DO MÓDULO 1 | I30: =(SUM(I26:I29)) -> 1412.489
A32: MÓDULO 2 – ENCARGOS E BENEFÍCIOS ANUAIS, MENSAIS E DIÁRIOS
A33: Submódulo 2.1 - 13º Salário, Férias e Adicional de Férias | H33: % | I33: VALOR (R$)
A34: A | B34: 13 (Décimo-terceiro) salário | H34: 0.0833 | I34: =$I$30*H34 -> 117.6603337
A35: B | B35: Férias e Adicional de Férias | H35: =(0.0833+0.0278) -> 0.1111 | I35: =H35*I30 -> 156.9275279
A36: TOTAL SUBMÓDULO 2.1 | H36: =TRUNC(SUM(H34:H35),4) -> 0.1944 | I36: =(SUM(I34:I35)) -> 274.5878616
A38: Submódulo 2.2 - GPS, FGTS e Outras Contribuições | H38: % | I38: VALOR (R$)
A39: A | B39: INSS | H39: 0.2 | I39: =H39*($I$30+$I$36) -> 337.4153723
A40: B | B40: Salário Educação | H40: 0.025 | I40: =H40*($I$30+$I$36) -> 42.17692154
A41: C | B41: SAT (Seguro Acidente de Trabalho) | H41: 0.03 | I41: =H41*($I$30+$I$36) -> 50.61230585
A42: D | B42: SESC ou SESI | H42: 0.015 | I42: =H42*($I$30+$I$36) -> 25.30615292
A43: E | B43: SENAI - SENAC | H43: 0.01 | I43: =H43*($I$30+$I$36) -> 16.87076862
A44: F | B44: SEBRAE | H44: 0.006 | I44: =H44*($I$30+$I$36) -> 10.12246117
A45: G | B45: INCRA | H45: 0.002 | I45: =H45*($I$30+$I$36) -> 3.374153723
A46: H | B46: FGTS | H46: 0.08 | I46: =H46*($I$30+$I$36) -> 134.9661489
A47: TOTAL SUBMÓDULO 2.2 | H47: =SUM(H39:H46) -> 0.368 | I47: =(SUM(I39:I46)) -> 620.8442851
A49: Submódulo 2.3 - Benefícios Mensais e Diários | I49: VALOR (R$)
A50: A | B50: Transporte | H50: - | I50: =(3.5*2*22)-(I26*0.06) -> 88.8082
A51: B | B51: Auxílio-Refeição/Alimentação | H51: - | I51: =16*22*0.9 -> 316.8
A52: C | B52: Assistência Médica e Familiar | H52: - | I52: 0
A53: D | B53: Seguro de vida, invalidez e funeral | H53: - | I53: ='Média Insumos'!E5 -> 7.666666667
A54: E | B54: Exames Médicos e Adminicionais | H54: - | I54: ='Média Insumos'!E6 -> 108.01
A55: F | B55: Prêmio Trabalho Noturno | H55: - | I55: 0
A56: G | B56: Prêmio Trabalho em Feriado | H56: - | I56: 0
A57: H | B57: Outros (especificar) | H57: - | I57: 0
A58: TOTAL SUBMÓDULO 2.3 | I58: =(SUM(I50:I57)) -> 521.2848667
A60: QUADRO-RESUMO DO MÓDULO 2 - ENCARGOS, BENEFÍCIOS ANUAIS, MENSAIS E DIÁRIOS
A61: Módulo 2 - Encargos, Benefícios Anuais, Mensais e Diários | I61: VALOR (R$)
A62: 2.1 | B62: 13º Salário, Férias e Adicional de Férias | I62: =I36 -> 274.5878616
A63: 2.2 | B63: GPS, FGTS e Outras Contribuições | I63: =I47 -> 620.8442851
A64: 2.3 | B64: Benefícios Mensais e Diários | I64: =I58 -> 521.2848667
A65: TOTAL DO MÓDULO 2 | I65: =(SUM(I62:I64)) -> 1416.717013
A67: MÓDULO 3 – PROVISÃO PARA RESCISÃO
A68: 3 | B68: PROVISÃO PARA RESCISÃO | H68: % | I68: VALOR (R$)
A69: 3.1 | B69: Custo do Aviso Prévio Indenizado | I69: =I70+I71 -> 196.6236055
A70: A | B70: Aviso Prévio Indenizado | I70: =(I30+I65-I39-I40-I41-I42-I43-I44-I45)/12*0.7483 -> 146.1260209
A71: B | B71: Multa do FGTS e Contribuição Social sobre o Aviso Prévio Indenizado | I71: =I46*0.5*0.7483 -> 50.49758462
A72: 3.2 | B72: Custo do Aviso Prévio Trabalhado | I72: =I73+I74 -> 25.20009513
A73: A | B73: Aviso Prévio Trabalhado | I73: =(I30+I65)/12*0.0831 -> 19.59225164
A74: B | B74: Multa do FGTS e Contribuição Social sobre o Aviso Prévio Trabalhado. | I74: =I46*0.5*0.0831 -> 5.607843488
A75: 3.3 | B75: Custo da Demissão com Justa Causa | I75: =(-I36)*0.0264 -> -7.249119546
A76: TOTAL DO MÓDULO 3 | I76: =I69+I72+I75 -> 214.5745811
A78: MÓDULO 4 – CUSTO DE REPOSIÇÃO DO PROFISSIONAL AUSENTE
A79: Submódulo 4.1 - Ausências Legais | H79: % | I79: VALOR (R$)
A80: A | B80: Férias | H80: =20.7123/12/30 -> 0.05753416667 | I80: =(I30+I65+I76)*H80 -> 175.12138
A81: B | B81: Ausências Legais | H81: =(3.4521+0.3044+0.0427+0.037+0.02+0.004+0.0014)/12/30 -> 0.01072666667 | I81: =(I30+I65+I76)*H81 -> 32.64961984
A82: C | B82: Licença Paternidade | H82: =0.4436/12/30 -> 0.001232222222 | I82: =(I30+I65+I76)*H82 -> 3.750614088
A83: D | B83: Ausência por Acidente de Trabalho | H83: =0.9545/12/30 -> 0.002651388889 | I83: =(I30+I65+I76)*H83 -> 8.070246048
A84: E | B84: Afastamento Maternidade | H84: =0.3446/12/30 -> 0.0009572222222 | I84: =(I30+I65+I76)*H84 -> 2.913574425
A85: F | B85: Ausências Justificadas | H85: =1/12/30 -> 0.002777777778 | I85: =(I30+I65+I76)*H85 -> 8.454946096
A86: G | B86: Outros (especificar) | H86: 0 | I86: =(I30+I65+I76)*H86 -> 0
A87: TOTAL SUBMÓDULO 4.1 | H87: =SUM(H80:H86) -> 0.07587944444 | I87: =SUM(I80:I86) -> 230.9603805
A89: Submódulo 4.2 - Intrajornada | H89: % | I89: VALOR (R$)
A90: A | B90: Intervalo para Repouso ou Alimentação | H90: 0 | I90: =$I$30*H90 -> 0
A91: TOTAL SUBMÓDULO 4.2 | H91: =TRUNC(SUM(H90),4) -> 0 | I91: =(SUM(I90)) -> 0
A93: QUADRO-RESUMO DO MÓDULO 4 - CUSTO DE REPOSIÇÃO DO PROFISSIONAL AUSENTE
A94: Módulo 4 - Custo de Reposição do Profissional Ausente | I94: VALOR (R$)
A95: 4.1 | B95: Ausências Legais | I95: =I87 -> 230.9603805
A96: 4.2 | B96: Intrajornada | I96: =I91 -> 0
A97: TOTAL DO MÓDULO 4 | I97: =(SUM(I95:I96)) -> 230.9603805
A99: MÓDULO 5 – INSUMOS DIVERSOS
A100: 5 | B100: INSUMOS DIVERSOS | I100: VALOR (R$)
A101: A | B101: Uniformes | H101: - | I101: 0
A102: B | B102: Materiais | H102: - | I102: 0
A103: C | B103: Armamento e munição | H103: - | I103: 0
A104: D | B104: Equipamentos de Proteção Individual (EPI`s) e outros equipamentos | H104: - | I104: 0
A105: E | B105: Outros (especificar) | H105: - | I105: 0
A106: F | B106: Estimativa do MPOG para SE | H106: 0.0512 | I106: =(I30+I65+I76+I97)*H106 -> 167.6667379
A107: TOTAL DO MÓDULO 5 | H107: - | I107: =(SUM(I101:I106)) -> 167.6667379
A109: MÓDULO 6 – CUSTOS INDIRETOS, TRIBUTOS E LUCRO
A110: 6 | B110: CUSTOS INDIRETOS, TRIBUTOS E LUCRO | H110: % | I110: VALOR (R$)
A111: A | B111: Custos Indiretos | H111: 0.06 | I111: =(I30+I65+I76+I97+I107)*H111 -> 206.5444628
A112: B | B112: Lucro | H112: 0.0679 | I112: =(I30+I65+I76+I97+I107+I111)*H112 -> 247.7638527
A113: C | B113: TRIBUTOS | H113: =H114+H115+H116 -> 0.0865
A114: C.1 | B114: PIS | H114: 0.0065 | I114: =(I127+I111+I112)/(1-H113)*H114 -> 27.72704344
A115: C.2 | B115: COFINS | H115: 0.03 | I115: =(I127+I111+I112)/(1-H113)*H115 -> 127.9709697
A116: C.3 | B116: ISS | H116: 0.05 | I116: =(I127+I111+I112)/(1-H113)*H116 -> 213.2849496
A117: TOTAL DO MÓDULO 6 | H117: =H111+H112+H113 -> 0.2144 | I117: =(SUM(I111:I116)) -> 823.2912782
A120: QUADRO RESUMO DO CUSTO POR EMPREGADO
A121: Mão-de-Obra vinculada à execução contratual (valor por empregado) | I121: VALOR (R$)
A122: A | B122: =A24 -> MÓDULO 1 - COMPOSIÇÃO DA REMUNERAÇÃO | I122: =I30 -> 1412.489
A123: B | B123: =A32 -> MÓDULO 2 – ENCARGOS E BENEFÍCIOS ANUAIS, MENSAIS E DIÁRIOS | I123: =I65 -> 1416.717013
A124: C | B124: =A67 -> MÓDULO 3 – PROVISÃO PARA RESCISÃO | I124: =I76 -> 214.5745811
A125: D | B125: =A78 -> MÓDULO 4 – CUSTO DE REPOSIÇÃO DO PROFISSIONAL AUSENTE | I125: =I97 -> 230.9603805
A126: E | B126: =A99 -> MÓDULO 5 – INSUMOS DIVERSOS | I126: =I107 -> 167.6667379
B127: Subtotal (A + B + C + D + E) | I127: =(SUM(I122:I126)) -> 3442.407713
A128: F | B128: =A109 -> MÓDULO 6 – CUSTOS INDIRETOS, TRIBUTOS E LUCRO | I128: =I117 -> 823.2912782
A129: PREÇO TOTAL MENSAL POR EMPREGADO / POSTO | I129: =(SUM(I127:I128)) -> 4265.698991
B131: Quadro Resumo - VALOR MENSAL DOS SERVIÇOS
A132: Tipo de Serviço (A) | C132: Valor Por Empregado(B) | E132: Qde de Empregados por posto ( C ) | G132: Valor Proposto por Posto (D) = (B x C) | H132: Qde Postos (E) | I132: VALOR (R$)
A133: Serviço 1 (indicar) | C133: R$ | G133: R$ | I133: 0
A134: Serviço 2 (indicar) | C134: R$ | G134: R$ | I134: 0
A135: Serviço 3 (indicar) | C135: R$ | G135: R$ | I135: 0
A136: Serviço ... (indicar) | C136: R$ | G136: R$ | I136: 0
A139: VALOR MENSAL DOS SERVIÇOS (I + II + III + ...) | I139: =SUM(I137:I138) -> 0
A141: Anexo III-D | B141: Quadro Demonstrativo - VALOR GLOBAL DA PROPOSTA
A142: VALOR GLOBAL DA PROPOSTA
B143: Descrição | I143: VALOR (R$)
A144: A | B144: Valor proposto por unidade de medida* | I144: =I114 -> 27.72704344
A145: B | B145: Valor mensal do serviço | I145: =#REF! -> 
A146: C | B146: Valor Global da Proposta (valor mensal do serviço X nº meses do contrato). | I146: =I117 -> 823.2912782
A147: TOTAL | I147: =SUM(I144:I146) -> 
A148: Nota(1): | B148: Informar o valor da unidade de medida por tipo de serviço.

Sheet 12x36 Diurno
A1: ANEXO I - PLANILHA DE CUSTOS E FORMAÇÃO DE PREÇOS
A3: Nº do Processo: 59540.000477/2018-68
A4: Licitação Nº:
A5: Dia ____/_____/_____ às ____:_____
A7: Discriminação dos Serviços
A8: A | B8: Data de apresentação da proposta
A9: B | B9: Município/UF | I9: Propriá/SE
A10: C | B10: Ano do Acordo, Convenção ou Dissídio Coletivo | I10: 2018
A11: D | B11: Nº de meses de execução contratual | I11: 12
A13: Identificação do Serviço
A14: Tipo de Serviço | C14: Unidade de Medida | E14: Quantidade total a contratar (em função da unidade de medida)
A15: Vigilância Armada | C15: Posto Diurno 12 X 36 | E15: 1
A17: Dados para composição dos custos referentes à mão-de-obra
A18: 1 | B18: Tipo de serviço (mesmo serviço com características distintas) | I18: Vigilâcia
A19: 2 | B19: Classificação Brasileira de Ocupações (CBO) | I19: 5173
A20: 3 | B20: Salário Nominativo da Categoria Profissional | I20: 1086.53
A21: 4 | B21: Categoria profissional (vinculada à execução contratual) | I21: Vigilante
A22: 5 | B22: Data base da categoria (dia/mês/ano) | I22: 2018-01-01
A24: MÓDULO 1 - COMPOSIÇÃO DA REMUNERAÇÃO
A25: 1 | B25: COMPOSIÇÃO DA REMUNERAÇÃO | H25: % | I25: VALOR (R$)
A26: A | B26: Salário Base | I26: =I20 -> 1086.53
A27: B | B27: Adicional Periculosidade | I27: =I26*0.3 -> 325.959
A28: C | B28: Adicional Noturno | I28: 0
A29: D | B29: Adicional de Hora Noturna Reduzida | I29: 0
A30: TOTAL DO MÓDULO 1 | I30: =(SUM(I26:I29)) -> 1412.489
A32: MÓDULO 2 – ENCARGOS E BENEFÍCIOS ANUAIS, MENSAIS E DIÁRIOS
A33: Submódulo 2.1 - 13º Salário, Férias e Adicional de Férias | H33: % | I33: VALOR (R$)
A34: A | B34: 13 (Décimo-terceiro) salário | H34: 0.0833 | I34: =$I$30*H34 -> 117.6603337
A35: B | B35: Férias e Adicional de Férias | H35: =(0.0833+0.0278) -> 0.1111 | I35: =H35*I30 -> 156.9275279
A36: TOTAL SUBMÓDULO 2.1 | H36: =TRUNC(SUM(H34:H35),4) -> 0.1944 | I36: =(SUM(I34:I35)) -> 274.5878616
A38: Submódulo 2.2 - GPS, FGTS e Outras Contribuições | H38: % | I38: VALOR (R$)
A39: A | B39: INSS | H39: 0.2 | I39: =H39*($I$30+$I$36) -> 337.4153723
A40: B | B40: Salário Educação | H40: 0.025 | I40: =H40*($I$30+$I$36) -> 42.17692154
A41: C | B41: SAT (Seguro Acidente de Trabalho) | H41: 0.03 | I41: =H41*($I$30+$I$36) -> 50.61230585
A42: D | B42: SESC ou SESI | H42: 0.015 | I42: =H42*($I$30+$I$36) -> 25.30615292
A43: E | B43: SENAI - SENAC | H43: 0.01 | I43: =H43*($I$30+$I$36) -> 16.87076862
A44: F | B44: SEBRAE | H44: 0.006 | I44: =H44*($I$30+$I$36) -> 10.12246117
A45: G | B45: INCRA | H45: 0.002 | I45: =H45*($I$30+$I$36) -> 3.374153723
A46: H | B46: FGTS | H46: 0.08 | I46: =H46*($I$30+$I$36) -> 134.9661489
A47: TOTAL SUBMÓDULO 2.2 | H47: =SUM(H39:H46) -> 0.368 | I47: =(SUM(I39:I46)) -> 620.8442851
A49: Submódulo 2.3 - Benefícios Mensais e Diários | I49: VALOR (R$)
A50: A | B50: Transporte | H50: - | I50: 0
A51: B | B51: Auxílio-Refeição/Alimentação | H51: - | I51: =16*15*0.9 -> 216
A52: C | B52: Assistência Médica e Familiar | H52: - | I52: 0
A53: D | B53: Seguro de vida, invalidez e funeral | H53: - | I53: ='Média Insumos'!E5 -> 7.666666667
A54: E | B54: Exames Médicos e Adminicionais | H54: - | I54: ='Média Insumos'!E6 -> 108.01
A55: F | B55: Prêmio Trabalho Noturno | H55: - | I55: 0
A56: G | B56: Prêmio Trabalho em Feriado | H56: - | I56: 80
A57: H | B57: Outros (especificar) | H57: - | I57: 0
A58: TOTAL SUBMÓDULO 2.3 | I58: =(SUM(I50:I57)) -> 411.6766667
A60: QUADRO-RESUMO DO MÓDULO 2 - ENCARGOS, BENEFÍCIOS ANUAIS, MENSAIS E DIÁRIOS
A61: Módulo 2 - Encargos, Benefícios Anuais, Mensais e Diários | I61: VALOR (R$)
A62: 2.1 | B62: 13º Salário, Férias e Adicional de Férias | I62: =I36 -> 274.5878616
A63: 2.2 | B63: GPS, FGTS e Outras Contribuições | I63: =I47 -> 620.8442851
A64: 2.3 | B64: Benefícios Mensais e Diários | I64: =I58 -> 411.6766667
A65: TOTAL DO MÓDULO 2 | I65: =(SUM(I62:I64)) -> 1307.108813
A67: MÓDULO 3 – PROVISÃO PARA RESCISÃO
A68: 3 | B68: PROVISÃO PARA RESCISÃO | H68: % | I68: VALOR (R$)
A69: 3.1 | B69: Custo do Aviso Prévio Indenizado | I69: =I70+I71 -> 189.7886208
A70: A | B70: Aviso Prévio Indenizado | I70: =(I30+I65-I39-I40-I41-I42-I43-I44-I45)/12*0.7483 -> 139.2910362
A71: B | B71: Multa do FGTS e Contribuição Social sobre o Aviso Prévio Indenizado | I71: =I46*0.5*0.7483 -> 50.49758462
A72: 3.2 | B72: Custo do Aviso Prévio Trabalhado | I72: =I73+I74 -> 24.44105835
A73: A | B73: Aviso Prévio Trabalhado | I73: =(I30+I65)/12*0.0831 -> 18.83321486
A74: B | B74: Multa do FGTS e Contribuição Social sobre o Aviso Prévio Trabalhado. | I74: =I46*0.5*0.0831 -> 5.607843488
A75: 3.3 | B75: Custo da Demissão com Justa Causa | I75: =(-I36)*0.0264 -> -7.249119546
A76: TOTAL DO MÓDULO 3 | I76: =I69+I72+I75 -> 206.9805596
A78: MÓDULO 4 – CUSTO DE REPOSIÇÃO DO PROFISSIONAL AUSENTE
A79: Submódulo 4.1 - Ausências Legais | H79: % | I79: VALOR (R$)
A80: A | B80: Férias | H80: =15/12/30 -> 0.04166666667 | I80: =(I30+I65+I76)*H80 -> 121.9407655
A81: B | B81: Ausências Legais | H81: =(2.5+0.3044+0.0309+0.0185+0.02+0.004+0.0014)/12/30 -> 0.007997777778 | I81: =(I30+I65+I76)*H81 -> 23.40612348
A82: C | B82: Licença Paternidade | H82: =0.3213/12/30 -> 0.0008925 | I82: =(I30+I65+I76)*H82 -> 2.611971198
A83: D | B83: Ausência por Acidente de Trabalho | H83: =0.6913/12/30 -> 0.001920277778 | I83: =(I30+I65+I76)*H83 -> 5.619843415
A84: E | B84: Afastamento Maternidade | H84: =0.2496/12/30 -> 0.0006933333333 | I84: =(I30+I65+I76)*H84 -> 2.029094339
A85: F | B85: Ausências Justificadas | H85: =1/12/30 -> 0.002777777778 | I85: =(I30+I65+I76)*H85 -> 8.129384369
A86: G | B86: Outros (especificar) | H86: 0 | I86: =(I30+I65+I76)*H86 -> 0
A87: TOTAL SUBMÓDULO 4.1 | H87: =SUM(H80:H86) -> 0.05594833333 | I87: =SUM(I80:I86) -> 163.7371823
A89: Submódulo 4.2 - Intrajornada | H89: % | I89: VALOR (R$)
A90: A | B90: Intervalo para Repouso ou Alimentação | H90: - | I90: =I30/220*15*1.5 -> 144.4591023
A91: TOTAL SUBMÓDULO 4.2 | H91: - | I91: =(SUM(I90)) -> 144.4591023
A93: QUADRO-RESUMO DO MÓDULO 4 - CUSTO DE REPOSIÇÃO DO PROFISSIONAL AUSENTE
A94: Módulo 4 - Custo de Reposição do Profissional Ausente | I94: VALOR (R$)
A95: 4.1 | B95: Ausências Legais | I95: =I87 -> 163.7371823
A96: 4.2 | B96: Intrajornada | I96: =I91 -> 144.4591023
A97: TOTAL DO MÓDULO 4 | I97: =(SUM(I95:I96)) -> 308.1962846
A99: MÓDULO 5 – INSUMOS DIVERSOS
A100: 5 | B100: INSUMOS DIVERSOS | I100: VALOR (R$)
A101: A | B101: Uniformes | H101: - | I101: 0
A102: B | B102: Materiais | H102: - | I102: 0
A103: C | B103: Armamento e munição | H103: - | I103: 0
A104: D | B104: Equipamentos de Proteção Individual (EPI`s) e outros equipamentos | H104: - | I104: 0
A105: E | B105: Outros (especificar) | H105: - | I105: 0
A106: F | B106: Estimativa do MPOG para SE | H106: 0.0305 | I106: =(I30+I65+I76+I97)*H106 -> 98.66062706
A107: TOTAL DO MÓDULO 5 | H107: - | I107: =(SUM(I101:I106)) -> 98.66062706
A109: MÓDULO 6 – CUSTOS INDIRETOS, TRIBUTOS E LUCRO
A110: 6 | B110: CUSTOS INDIRETOS, TRIBUTOS E LUCRO | H110: % | I110: VALOR (R$)
A111: A | B111: Custos Indiretos | H111: 0.06 | I111: =(I30+I65+I76+I97+I107)*H111 -> 200.0061171
A112: B | B112: Lucro | H112: 0.0679 | I112: =(I30+I65+I76+I97+I107+I111)*H112 -> 239.9206712
A113: C | B113: TRIBUTOS | H113: =H114+H115+H116 -> 0.0865
A114: C.1 | B114: PIS | H114: 0.0065 | I114: =(I127+I111+I112)/(1-H113)*H114 -> 26.84931962
A115: C.2 | B115: COFINS | H115: 0.03 | I115: =(I127+I111+I112)/(1-H113)*H115 -> 123.9199367
A116: C.3 | B116: ISS | H116: 0.05 | I116: =(I127+I111+I112)/(1-H113)*H116 -> 206.5332279
A117: TOTAL DO MÓDULO 6 | H117: =H111+H112+H113 -> 0.2144 | I117: =(SUM(I111:I116)) -> 797.2292724
A120: QUADRO RESUMO DO CUSTO POR EMPREGADO
A121: Mão-de-Obra vinculada à execução contratual (valor por empregado) | I121: VALOR (R$)
A122: A | B122: =A24 -> MÓDULO 1 - COMPOSIÇÃO DA REMUNERAÇÃO | I122: =I30 -> 1412.489
A123: B | B123: =A32 -> MÓDULO 2 – ENCARGOS E BENEFÍCIOS ANUAIS, MENSAIS E DIÁRIOS | I123: =I65 -> 1307.108813
A124: C | B124: =A67 -> MÓDULO 3 – PROVISÃO PARA RESCISÃO | I124: =I76 -> 206.9805596
A125: D | B125: =A78 -> MÓDULO 4 – CUSTO DE REPOSIÇÃO DO PROFISSIONAL AUSENTE | I125: =I97 -> 308.1962846
A126: E | B126: =A99 -> MÓDULO 5 – INSUMOS DIVERSOS | I126: =I107 -> 98.66062706
B127: Subtotal (A + B + C + D + E) | I127: =(SUM(I122:I126)) -> 3333.435285
A128: F | B128: =A109 -> MÓDULO 6 – CUSTOS INDIRETOS, TRIBUTOS E LUCRO | I128: =I117 -> 797.2292724
A129: PREÇO TOTAL MENSAL POR EMPREGADO | I129: =(SUM(I127:I128)) -> 4130.664557
A130: PREÇO TOTAL MENSAL POR POSTO | I130: =I129*2 -> 8261.329114
B131: Quadro Resumo - VALOR MENSAL DOS SERVIÇOS
A132: Tipo de Serviço (A) | C132: Valor Por Empregado(B) | E132: Qde de Empregados por posto ( C ) | G132: Valor Proposto por Posto (D) = (B x C) | H132: Qde Postos (E) | I132: VALOR (R$)
A133: Serviço 1 (indicar) | C133: R$ | G133: R$ | I133: 0
A134: Serviço 2 (indicar) | C134: R$ | G134: R$ | I134: 0
A135: Serviço 3 (indicar) | C135: R$ | G135: R$ | I135: 0
A136: Serviço ... (indicar) | C136: R$ | G136: R$ | I136: 0
A139: VALOR MENSAL DOS SERVIÇOS (I + II + III + ...) | I139: =SUM(I137:I138) -> 0
A141: Anexo III-D | B141: Quadro Demonstrativo - VALOR GLOBAL DA PROPOSTA
A142: VALOR GLOBAL DA PROPOSTA
B143: Descrição | I143: VALOR (R$)
A144: A | B144: Valor proposto por unidade de medida* | I144: =I114 -> 26.84931962
A145: B | B145: Valor mensal do serviço | I145: =#REF! -> 
A146: C | B146: Valor Global da Proposta (valor mensal do serviço X nº meses do contrato). | I146: =I117 -> 797.2292724
A147: TOTAL | I147: =SUM(I144:I146) -> 
A148: Nota(1): | B148: Informar o valor da unidade de medida por tipo de serviço.

Sheet 12x36 Noturno
A1: ANEXO I - PLANILHA DE CUSTOS E FORMAÇÃO DE PREÇOS
A3: Nº do Processo: 59540.000477/2018-68
A4: Licitação Nº:
A5: Dia ____/_____/_____ às ____:_____
A7: Discriminação dos Serviços
A8: A | B8: Data de apresentação da proposta
A9: B | B9: Município/UF | I9: Propriá/SE
A10: C | B10: Ano do Acordo, Convenção ou Dissídio Coletivo | I10: 2018
A11: D | B11: Nº de meses de execução contratual | I11: 12
A13: Identificação do Serviço
A14: Tipo de Serviço | C14: Unidade de Medida | E14: Quantidade total a contratar (em função da unidade de medida)
A15: Vigilância Armada | C15: Posto Noturno 12 X 36 | E15: 1
A17: Dados para composição dos custos referentes à mão-de-obra
A18: 1 | B18: Tipo de serviço (mesmo serviço com características distintas) | I18: Vigilâcia
A19: 2 | B19: Classificação Brasileira de Ocupações (CBO) | I19: 5173
A20: 3 | B20: Salário Nominativo da Categoria Profissional | I20: 1086.53
A21: 4 | B21: Categoria profissional (vinculada à execução contratual) | I21: Vigilante
A22: 5 | B22: Data base da categoria (dia/mês/ano) | I22: 2018-01-01
A24: MÓDULO 1 - COMPOSIÇÃO DA REMUNERAÇÃO
A25: 1 | B25: COMPOSIÇÃO DA REMUNERAÇÃO | H25: % | I25: VALOR (R$)
A26: A | B26: Salário Base | I26: =I20 -> 1086.53
A27: B | B27: Adicional Periculosidade | I27: =I26*0.3 -> 325.959
A28: C | B28: Adicional Noturno | I28: 134.4
A29: D | B29: Adicional de Hora Noturna Reduzida | I29: 158.25
A30: E | B30: Reflexo DSR Hr. Noturna Reduzida | I30: 31.65
A31: F | B31: Reflexo DSR Adicicional Noturno | I31: 26.88
A32: TOTAL DO MÓDULO 1 | I32: =SUM(I26:I31) -> 1763.669
A34: MÓDULO 2 – ENCARGOS E BENEFÍCIOS ANUAIS, MENSAIS E DIÁRIOS
A35: Submódulo 2.1 - 13º Salário, Férias e Adicional de Férias | H35: % | I35: VALOR (R$)
A36: A | B36: 13 (Décimo-terceiro) salário | H36: 0.0833 | I36: =$I$32*H36 -> 146.9136277
A37: B | B37: Férias e Adicional de Férias | H37: =(0.0833+0.0278) -> 0.1111 | I37: =H37*I32 -> 195.9436259
A38: TOTAL SUBMÓDULO 2.1 | H38: =TRUNC(SUM(H36:H37),4) -> 0.1944 | I38: =(SUM(I36:I37)) -> 342.8572536
A40: Submódulo 2.2 - GPS, FGTS e Outras Contribuições | H40: % | I40: VALOR (R$)
A41: A | B41: INSS | H41: 0.2 | I41: =H41*($I$32+$I$38) -> 421.3052507
A42: B | B42: Salário Educação | H42: 0.025 | I42: =H42*($I$32+$I$38) -> 52.66315634
A43: C | B43: SAT (Seguro Acidente de Trabalho) | H43: 0.03 | I43: =H43*($I$32+$I$38) -> 63.19578761
A44: D | B44: SESC ou SESI | H44: 0.015 | I44: =H44*($I$32+$I$38) -> 31.5978938
A45: E | B45: SENAI - SENAC | H45: 0.01 | I45: =H45*($I$32+$I$38) -> 21.06526254
A46: F | B46: SEBRAE | H46: 0.006 | I46: =H46*($I$32+$I$38) -> 12.63915752
A47: G | B47: INCRA | H47: 0.002 | I47: =H47*($I$32+$I$38) -> 4.213052507
A48: H | B48: FGTS | H48: 0.08 | I48: =H48*($I$32+$I$38) -> 168.5221003
A49: TOTAL SUBMÓDULO 2.2 | H49: =SUM(H41:H48) -> 0.368 | I49: =(SUM(I41:I48)) -> 775.2016613
A51: Submódulo 2.3 - Benefícios Mensais e Diários | I51: VALOR (R$)
A52: A | B52: Transporte | H52: - | I52: 0
A53: B | B53: Auxílio-Refeição/Alimentação | H53: - | I53: =16*15*0.9 -> 216
A54: C | B54: Assistência Médica e Familiar | H54: - | I54: 0
A55: D | B55: Seguro de vida, invalidez e funeral | H55: - | I55: ='Média Insumos'!E5 -> 7.666666667
A56: E | B56: Exames Médicos e Adminicionais | H56: - | I56: ='Média Insumos'!E6 -> 108.01
A57: F | B57: Prêmio Trabalho Noturno | H57: - | I57: 40
A58: G | B58: Prêmio Trabalho em Feriado | H58: - | I58: 40
A59: H | B59: Outros (especificar) | H59: - | I59: 0
A60: TOTAL SUBMÓDULO 2.3 | I60: =(SUM(I52:I59)) -> 411.6766667
A62: QUADRO-RESUMO DO MÓDULO 2 - ENCARGOS, BENEFÍCIOS ANUAIS, MENSAIS E DIÁRIOS
A63: Módulo 2 - Encargos, Benefícios Anuais, Mensais e Diários | I63: VALOR (R$)
A64: 2.1 | B64: 13º Salário, Férias e Adicional de Férias | I64: =I38 -> 342.8572536
A65: 2.2 | B65: GPS, FGTS e Outras Contribuições | I65: =I49 -> 775.2016613
A66: 2.3 | B66: Benefícios Mensais e Diários | I66: =I60 -> 411.6766667
A67: TOTAL DO MÓDULO 2 | I67: =(SUM(I64:I66)) -> 1529.735582
A69: MÓDULO 3 – PROVISÃO PARA RESCISÃO
A70: 3 | B70: PROVISÃO PARA RESCISÃO | H70: % | I70: VALOR (R$)
A71: 3.1 | B71: Custo do Aviso Prévio Indenizado | I71: =I72+I73 -> 230.5922382
A72: A | B72: Aviso Prévio Indenizado | I72: =(I32+I67-I41-I42-I43-I44-I45-I46-I47)/12*0.7483 -> 167.5396944
A73: B | B73: Multa do FGTS e Contribuição Social sobre o Aviso Prévio Indenizado | I73: =I48*0.5*0.7483 -> 63.05254382
A74: 3.2 | B74: Custo do Aviso Prévio Trabalhado | I74: =I75+I76 -> 29.80891999
A75: A | B75: Aviso Prévio Trabalhado | I75: =(I32+I67)/12*0.0831 -> 22.80682673
A76: B | B76: Multa do FGTS e Contribuição Social sobre o Aviso Prévio Trabalhado. | I76: =I48*0.5*0.0831 -> 7.002093267
A77: 3.3 | B77: Custo da Demissão com Justa Causa | I77: =(-I38)*0.0264 -> -9.051431495
A78: TOTAL DO MÓDULO 3 | I78: =I71+I74+I77 -> 251.3497267
A80: MÓDULO 4 – CUSTO DE REPOSIÇÃO DO PROFISSIONAL AUSENTE
A81: Submódulo 4.1 - Ausências Legais | H81: % | I81: VALOR (R$)
A82: A | B82: Férias | H82: =15/12/30 -> 0.04166666667 | I82: =(I32+I67+I78)*H82 -> 147.6980962
A83: B | B83: Ausências Legais | H83: =(2.5+0.3044+0.0309+0.0185+0.02+0.004+0.0014)/12/30 -> 0.007997777778 | I83: =(I32+I67+I78)*H83 -> 28.35015723
A84: C | B84: Licença Paternidade | H84: =0.3213/12/30 -> 0.0008925 | I84: =(I32+I67+I78)*H84 -> 3.16369322
A85: D | B85: Ausência por Acidente de Trabalho | H85: =0.6913/12/30 -> 0.001920277778 | I85: =(I32+I67+I78)*H85 -> 6.806912926
A86: E | B86: Afastamento Maternidade | H86: =0.2496/12/30 -> 0.0006933333333 | I86: =(I32+I67+I78)*H86 -> 2.45769632
A87: F | B87: Ausências Justificadas | H87: =1/12/30 -> 0.002777777778 | I87: =(I32+I67+I78)*H87 -> 9.846539745
A88: G | B88: Outros (especificar) | H88: 0 | I88: =(I32+I67+I78)*H88 -> 0
A89: TOTAL SUBMÓDULO 4.1 | H89: =SUM(H82:H88) -> 0.05594833333 | I89: =SUM(I82:I88) -> 198.3230956
A91: Submódulo 4.2 - Intrajornada | H91: % | I91: VALOR (R$)
A92: A | B92: Intervalo para Repouso ou Alimentação | H92: - | I92: 158.25
A93: TOTAL SUBMÓDULO 4.2 | H93: - | I93: =(SUM(I92)) -> 158.25
A95: QUADRO-RESUMO DO MÓDULO 4 - CUSTO DE REPOSIÇÃO DO PROFISSIONAL AUSENTE
A96: Módulo 4 - Custo de Reposição do Profissional Ausente | I96: VALOR (R$)
A97: 4.1 | B97: Ausências Legais | I97: =I89 -> 198.3230956
A98: 4.2 | B98: Intrajornada | I98: =I93 -> 158.25
A99: TOTAL DO MÓDULO 4 | I99: =(SUM(I97:I98)) -> 356.5730956
A101: MÓDULO 5 – INSUMOS DIVERSOS
A102: 5 | B102: INSUMOS DIVERSOS | I102: VALOR (R$)
A103: A | B103: Uniformes | H103: - | I103: 0
A104: B | B104: Materiais | H104: - | I104: 0
A105: C | B105: Armamento e munição | H105: - | I105: 0
A106: D | B106: Equipamentos de Proteção Individual (EPI`s) e outros equipamentos | H106: - | I106: 0
A107: E | B107: Outros (especificar) | H107: - | I107: 0
A108: F | B108: Estimativa do MPOG para SE | H108: 0.0305 | I108: =(I32+I67+I78+I99)*H108 -> 118.9904858
A109: TOTAL DO MÓDULO 5 | H109: - | I109: =(SUM(I103:I108)) -> 118.9904858
A111: MÓDULO 6 – CUSTOS INDIRETOS, TRIBUTOS E LUCRO
A112: 6 | B112: CUSTOS INDIRETOS, TRIBUTOS E LUCRO | H112: % | I112: VALOR (R$)
A113: A | B113: Custos Indiretos | H113: 0.06 | I113: =(I32+I67+I78+I99+I109)*H113 -> 241.2190734
A114: B | B114: Lucro | H114: 0.0679 | I114: =(I32+I67+I78+I99+I109+I113)*H114 -> 289.3583598
A115: C | B115: TRIBUTOS | H115: =H116+H117+H118 -> 0.0865
A116: C.1 | B116: PIS | H116: 0.0065 | I116: =(I129+I113+I114)/(1-H115)*H116 -> 32.38184959
A117: C.2 | B117: COFINS | H117: 0.03 | I117: =(I129+I113+I114)/(1-H115)*H117 -> 149.4546904
A118: C.3 | B118: ISS | H118: 0.05 | I118: =(I129+I113+I114)/(1-H115)*H118 -> 249.0911507
A119: TOTAL DO MÓDULO 6 | H119: =H113+H114+H115 -> 0.2144 | I119: =(SUM(I113:I118)) -> 961.5051239
A122: QUADRO RESUMO DO CUSTO POR EMPREGADO
A123: Mão-de-Obra vinculada à execução contratual (valor por empregado) | I123: VALOR (R$)
A124: A | B124: =A24 -> MÓDULO 1 - COMPOSIÇÃO DA REMUNERAÇÃO | I124: =I32 -> 1763.669
A125: B | B125: =A34 -> MÓDULO 2 – ENCARGOS E BENEFÍCIOS ANUAIS, MENSAIS E DIÁRIOS | I125: =I67 -> 1529.735582
A126: C | B126: =A69 -> MÓDULO 3 – PROVISÃO PARA RESCISÃO | I126: =I78 -> 251.3497267
A127: D | B127: =A80 -> MÓDULO 4 – CUSTO DE REPOSIÇÃO DO PROFISSIONAL AUSENTE | I127: =I99 -> 356.5730956
A128: E | B128: =A101 -> MÓDULO 5 – INSUMOS DIVERSOS | I128: =I109 -> 118.9904858
B129: Subtotal (A + B + C + D + E) | I129: =(SUM(I124:I128)) -> 4020.31789
A130: F | B130: =A111 -> MÓDULO 6 – CUSTOS INDIRETOS, TRIBUTOS E LUCRO | I130: =I119 -> 961.5051239
A131: PREÇO TOTAL MENSAL POR EMPREGADO | I131: =(SUM(I129:I130)) -> 4981.823014
A132: PREÇO TOTAL MENSAL POR POSTO | I132: =I131*2 -> 9963.646027
B133: Quadro Resumo - VALOR MENSAL DOS SERVIÇOS
A134: Tipo de Serviço (A) | C134: Valor Por Empregado(B) | E134: Qde de Empregados por posto ( C ) | G134: Valor Proposto por Posto (D) = (B x C) | H134: Qde Postos (E) | I134: VALOR (R$)
A135: Serviço 1 (indicar) | C135: R$ | G135: R$ | I135: 0
A136: Serviço 2 (indicar) | C136: R$ | G136: R$ | I136: 0
A137: Serviço 3 (indicar) | C137: R$ | G137: R$ | I137: 0
A138: Serviço ... (indicar) | C138: R$ | G138: R$ | I138: 0
A141: VALOR MENSAL DOS SERVIÇOS (I + II + III + ...) | I141: =SUM(I139:I140) -> 0
A143: Anexo III-D | B143: Quadro Demonstrativo - VALOR GLOBAL DA PROPOSTA
A144: VALOR GLOBAL DA PROPOSTA
B145: Descrição | I145: VALOR (R$)
A146: A | B146: Valor proposto por unidade de medida* | I146: =I116 -> 32.38184959
A147: B | B147: Valor mensal do serviço | I147: =#REF! -> 
A148: C | B148: Valor Global da Proposta (valor mensal do serviço X nº meses do contrato). | I148: =I119 -> 961.5051239
A149: TOTAL | I149: =SUM(I146:I148) -> 
A150: Nota(1): | B150: Informar o valor da unidade de medida por tipo de serviço.

Sheet Resumo
A1: QUADRO RESUMO DOS CUSTOS DE VIGILÂNCIA
A3: Nº do Processo: 59540.000477/2018-68
A4: Licitação Nº:
A5: Dia ____/_____/_____ às ____:_____
A7: POSTOS DE VIGILÂNCIA | B7: 12X36 Diurno | C7: 12X36 Noturno | D7: 44 h | E7: Mensal | F7: Anual
A8: Armada 12x36, 24 h, 4 vigilantes, para Perímetro Irrigado de Propriá, município de Propriá/SE. | B8: ='12x36 Diurno'!I130 -> 8261.329114 | C8: ='12x36 Noturno'!I132 -> 9963.646027 | D8: 0 | E8: =SUM(B8:D8) -> 18224.97514 | F8: =E8*12 -> 218699.7017
A9: Armada 12x36, 24 h, 4 vigilantes, para Perímetro Irrigado de Cotinguiba/Pindoba, município de Propriá/SE. | B9: ='12x36 Diurno'!I130 -> 8261.329114 | C9: ='12x36 Noturno'!I132 -> 9963.646027 | D9: 0 | E9: =SUM(B9:D9) -> 18224.97514 | F9: =E9*12 -> 218699.7017
A10: Armada 12x36, 24 h, 4 vigilantes, para a Unidade de São Vicente, município de Propriá/SE. | B10: ='12x36 Diurno'!I130 -> 8261.329114 | C10: ='12x36 Noturno'!I132 -> 9963.646027 | D10: 0 | E10: =SUM(B10:D10) -> 18224.97514 | F10: =E10*12 -> 218699.7017
A11: Armada 44 h semanais, 1 vigilante, para o prédio sede da Codevasf 4ªSR, município de Aracaju/SE. | B11: 0 | C11: 0 | D11: ='44 h'!I129 -> 4265.698991 | E11: =SUM(B11:D11) -> 4265.698991 | F11: =E11*12 -> 51188.38789
A12: TOTAL GERAL | F12: =SUM(F8:F11) -> 707287.493

Sheet Média Insumos
A1: CÁLCULO DO VALOR MÉDIO DE BENEFÍCIOS E INSUMOS PARA PLANILHA DE CUSTOS E FORMAÇÃO DE PREÇOS
A4: ITENS ORÇADOS | B4: Pinheiro | C4: NC | D4: Multseg | E4: Média
A5: Seguro de vida, invalidez e funeral | B5: 9 | C5: 7.2 | D5: 6.8 | E5: =(B5+C5+D5)/3 -> 7.666666667
A6: Exames Médicos e Adminicionais | B6: 123 | C6: 102.53 | D6: 98.5 | E6: =(B6+C6+D6)/3 -> 108.01
A7: Uniformes | B7: 111.22 | C7: 99.74 | D7: 94.86 | E7: =(B7+C7+D7)/3 -> 101.94
A8: Armamento e munição | B8: 92 | C8: 88 | D8: 65 | E8: =(B8+C8+D8)/3 -> 81.66666667
A9: Equipamentos de Proteção Individual (EPI`s) e outros equipamentos | B9: 89.95 | C9: 82 | D9: 75 | E9: =(B9+C9+D9)/3 -> 82.31666667
